bitfinex-derivatives/quotes_BTCF0:USTF0_20250626
["timestamp","ask_amount","ask_price","bid_price","bid_amount"]
[1750937903932,0.75819368,107280.0,107270.0,0.95536878]
[1750937905530,0.75819368,107280.0,107270.0,0.7443239]
[1750937905727,0.75819368,107280.0,107270.0,0.95536878]
[1750937906535,0.7839867,107280.0,107270.0,0.95536878]
[1750937906737,0.7839867,107280.0,107270.0,1.02937615]
[1750937907342,0.7839867,107280.0,107270.0,1.16437615]
[1750937908633,0.8468867,107280.0,107270.0,1.16437615]
[1750937910643,0.8468867,107280.0,107270.0,0.95333127]
[1750937910839,0.8468867,107280.0,107270.0,1.16437615]
[1750937912041,0.8468867,107280.0,107270.0,1.02937615]
[1750937912943,0.8768867,107280.0,107270.0,1.02937615]
[1750937913643,0.66584182,107280.0,107270.0,1.02937615]
[1750937913840,0.8768867,107280.0,107270.0,1.02937615]
[1750937915645,0.5160867,107280.0,107270.0,1.02937615]
[1750937915953,0.8768867,107280.0,107270.0,1.02937615]
[1750937916338,0.8768867,107280.0,107270.0,1.16397615]
[1750937916543,0.85109368,107280.0,107270.0,1.16397615]
[1750937919351,0.87688492,107280.0,107270.0,1.16397615]
[1750937922756,0.87688492,107280.0,107270.0,1.13297615]
[1750937923157,0.85109368,107280.0,107270.0,1.13297615]
[1750937924853,0.85109368,107280.0,107270.0,1.10067615]
[1750937925560,0.85109368,107280.0,107270.0,0.75977615]
[1750937927162,0.85109368,107280.0,107270.0,1.07977615]
[1750937927664,0.85109368,107280.0,107270.0,1.00576878]
[1750937930161,1.448736,107280.0,107270.0,0.1386]
[1750937930368,1.448736,107280.0,107270.0,0.3249663]
[1750937930666,1.508736,107280.0,107270.0,0.1903663]
[1750937931263,1.48293856,107280.0,107270.0,0.1903663]
[1750937931966,1.50874445,107280.0,107270.0,0.1873663]
[1750937937774,1.08665469,107280.0,107270.0,0.1873663]
[1750937938072,1.81069957,107280.0,107270.0,0.39841118]
[1750937938270,1.81069957,107280.0,107270.0,0.71841118]
[1750937942770,0.66585469,107280.0,107270.0,0.77841118]
[1750937942971,0.3608,107280.0,107270.0,0.94523118]
[1750937943170,0.3608,107280.0,107270.0,1.00843118]
[1750937943878,0.3608,107280.0,107270.0,1.08415079]
[1750937944578,0.5471489,107280.0,107270.0,1.08415079]
[1750937947180,0.3608,107280.0,107270.0,1.08415079]
[1750937950385,0.3608,107280.0,107270.0,0.87310591]
[1750937950584,0.3608,107280.0,107270.0,1.08415079]
[1750937952684,0.3608,107290.0,107280.0,0.1863489]
[1750937952882,0.58289536,107290.0,107280.0,1.03283866]
[1750937953184,0.78394024,107290.0,107280.0,0.82179378]
[1750937954886,0.78494024,107290.0,107280.0,0.82179378]
[1750937955089,0.78594024,107290.0,107280.0,1.60563866]
[1750937955296,0.38856376,107290.0,107280.0,1.60563866]
[1750937955586,0.002,107290.0,107280.0,1.60563866]
[1750937956487,0.001,107290.0,107280.0,1.60863866]
[1750937956685,0.02677636,107290.0,107280.0,1.60863866]
[1750937957188,0.001,107290.0,107280.0,1.60863866]
[1750937958085,0.94793088,107300.0,107290.0,0.1863316]
[1750937958386,0.97370069,107300.0,107290.0,0.72737648]
[1750937958791,0.92712169,107300.0,107290.0,0.72737648]
[1750937958985,0.92712169,107300.0,107290.0,0.75987648]
[1750937959489,0.92712169,107300.0,107290.0,0.89519648]
[1750937959686,0.63779811,107300.0,107290.0,0.89519648]
[1750937959989,0.60699811,107300.0,107290.0,0.95739648]
[1750937960484,0.02676981,107300.0,107290.0,0.95739648]
[1750937960881,0.02676981,107300.0,107290.0,0.96672147]
[1750937962290,0.21308401,107300.0,107290.0,0.96672147]
[1750937962590,0.02676981,107300.0,107290.0,0.96672147]
[1750937962890,0.21308391,107300.0,107290.0,0.96672147]
[1750937963290,0.21308391,107300.0,107290.0,0.75567659]
[1750937963588,0.21308391,107300.0,107290.0,0.96672147]
[1750937965190,0.1873141,107300.0,107290.0,0.96672147]
[1750937965392,0.001,107300.0,107290.0,0.75567659]
[1750937965593,0.001,107300.0,107290.0,0.96672147]
[1750937965981,0.1873142,107300.0,107290.0,0.96672147]
[1750937966386,0.21310557,107300.0,107290.0,0.96672147]
[1750937968691,0.57390557,107300.0,107290.0,0.96672147]
[1750937969695,0.63740557,107300.0,107290.0,0.96672147]
[1750937969890,0.66820557,107300.0,107290.0,0.96672147]
[1750937973897,0.48189137,107300.0,107290.0,0.96672147]
[1750937974590,0.4561,107300.0,107290.0,0.96672147]
[1750937978200,0.48197571,107300.0,107290.0,0.75567659]
[1750937978501,0.48197571,107300.0,107290.0,0.96672147]
[1750937998820,0.48197571,107300.0,107290.0,0.87202147]
[1750937999826,0.12117571,107300.0,107290.0,0.87202147]
[1750938000031,0.48197571,107300.0,107290.0,0.87202147]
[1750938000224,0.66828991,107300.0,107290.0,0.87202147]
[1750938000432,0.66828991,107300.0,107290.0,0.66097659]
[1750938000629,0.87933479,107300.0,107290.0,0.87202147]
[1750938001433,1.09037967,107300.0,107290.0,0.1873316]
[1750938001624,1.45117967,107300.0,107290.0,0.5373316]
[1750938001825,1.45117967,107300.0,107290.0,0.2473316]
[1750938002133,1.24013479,107300.0,107290.0,0.45837648]
[1750938002534,1.24013479,107300.0,107290.0,0.2473316]
[1750938002731,1.24013479,107300.0,107290.0,0.45837648]
[1750938003636,1.81213479,107300.0,107290.0,0.45837648]
[1750938005725,1.81213479,107300.0,107290.0,0.2473316]
[1750938005931,1.81213479,107300.0,107290.0,0.45837648]
[1750938006729,1.82143315,107300.0,107290.0,0.45837648]
[1750938006926,2.03247803,107300.0,107290.0,0.45837648]
[1750938008534,2.02317967,107300.0,107290.0,0.45837648]
[1750938008729,1.60108991,107300.0,107290.0,0.2473316]
[1750938008930,2.02317967,107300.0,107290.0,0.39837648]
[1750938009132,1.81213479,107300.0,107290.0,0.39837648]
[1750938013146,1.81213479,107300.0,107290.0,0.1873316]
[1750938013339,1.81213479,107300.0,107290.0,0.39837648]
[1750938014146,1.81213479,107300.0,107290.0,0.75837648]
[1750938014643,1.81213479,107300.0,107290.0,0.39837648]
[1750938015144,1.81213479,107300.0,107290.0,0.77837648]
[1750938015343,1.81213479,107300.0,107290.0,0.71837648]
[1750938016839,1.02908991,107300.0,107290.0,0.71837648]
[1750938017041,1.45117479,107300.0,107290.0,0.71837648]
[1750938036749,1.09037479,107300.0,107290.0,0.71837648]
[1750938036956,1.45117479,107300.0,107290.0,0.71837648]
[1750938045065,1.24012991,107300.0,107290.0,0.71837648]
[1750938045266,1.45117479,107300.0,107290.0,0.71837648]
[1750938048264,1.66221967,107300.0,107290.0,0.71837648]
[1750938049169,1.45117479,107300.0,107290.0,0.71837648]
[1750938058884,1.45065479,107300.0,107290.0,0.71837648]
[1750938070801,0.87933479,107300.0,107290.0,0.71837648]
[1750938070995,1.45045479,107300.0,107290.0,0.71837648]
[1750938071295,0.87933479,107300.0,107290.0,0.71837648]
[1750938071501,1.45041479,107300.0,107290.0,0.71837648]
[1750938073004,1.23936991,107300.0,107290.0,0.71837648]
[1750938073205,1.45041479,107300.0,107290.0,0.71837648]
[1750938075205,1.23936991,107300.0,107290.0,0.71837648]
[1750938075397,1.45041479,107300.0,107290.0,0.71837648]
[1750938078608,1.81121479,107300.0,107290.0,0.71837648]
[1750938080104,1.81121479,107300.0,107290.0,0.5073316]
[1750938080307,1.81121479,107300.0,107290.0,0.71837648]
[1750938080805,2.02225967,107300.0,107290.0,0.71837648]
[1750938082010,2.02225967,107300.0,107290.0,0.5073316]
[1750938082212,2.02225967,107300.0,107290.0,0.71837648]
[1750938083413,1.81121479,107300.0,107290.0,0.71837648]
[1750938085215,1.81121479,107300.0,107290.0,0.5073316]
[1750938085414,1.81121479,107300.0,107290.0,0.71837648]
[1750938089420,1.24013479,107300.0,107290.0,0.71837648]
[1750938089614,1.81101479,107300.0,107290.0,0.71837648]
[1750938092021,1.81101479,107300.0,107290.0,0.5073316]
[1750938092519,1.81101479,107300.0,107290.0,0.71837648]
[1750938093119,2.02205967,107300.0,107290.0,0.71837648]
[1750938094421,1.81101479,107300.0,107290.0,0.71837648]
[1750938097527,1.81089479,107300.0,107290.0,0.71837648]
[1750938099228,1.59984991,107300.0,107290.0,0.71837648]
[1750938099429,1.81089479,107300.0,107290.0,0.71837648]
[1750938101537,1.81089479,107300.0,107290.0,0.5073316]
[1750938101728,1.81089479,107300.0,107290.0,0.71837648]
[1750938103130,1.08929479,107300.0,107290.0,0.71837648]
[1750938103332,1.81089479,107300.0,107290.0,0.71837648]
[1750938105133,1.08929479,107300.0,107290.0,0.71837648]
[1750938105438,2.02193967,107300.0,107290.0,0.3073316]
[1750938105635,2.02193967,107300.0,107290.0,0.51837648]
[1750938106038,1.81089479,107300.0,107290.0,0.51837648]
[1750938106527,2.02193967,107300.0,107290.0,0.51837648]
[1750938107937,2.02193967,107300.0,107290.0,0.3073316]
[1750938108844,2.02193967,107300.0,107290.0,0.1873316]
[1750938112044,2.61193967,107300.0,107290.0,0.001]
[1750938112246,2.36193967,107300.0,107290.0,0.001]
[1750938113049,2.49517967,107300.0,107290.0,0.001]
[1750938114248,0.1863316,107290.0,107280.0,0.2795045]
[1750938114442,0.88015219,107290.0,107280.0,0.3395045]
[1750938115452,0.88015219,107290.0,107280.0,0.3405045]
[1750938119146,0.51935219,107290.0,107280.0,0.3405045]
[1750938119346,0.88015219,107290.0,107280.0,0.3405045]
[1750938121253,0.88015219,107290.0,107280.0,0.55154938]
[1750938121454,0.88015219,107290.0,107280.0,0.3405045]
[1750938121654,1.45071219,107290.0,107280.0,0.3405045]
[1750938121854,1.45071219,107290.0,107280.0,0.6105045]
[1750938122454,1.23966731,107290.0,107280.0,0.6105045]
[1750938122656,1.45071219,107290.0,107280.0,0.6105045]
[1750938123258,1.45071219,107290.0,107280.0,0.82154938]
[1750938124956,1.23966731,107290.0,107280.0,0.82154938]
[1750938125157,1.45071219,107290.0,107280.0,0.82154938]
[1750938128550,1.45071219,107290.0,107280.0,0.49154938]
[1750938128756,1.45071219,107290.0,107280.0,0.3605045]
[1750938129458,1.08991219,107290.0,107280.0,0.3605045]
[1750938129759,1.81151219,107290.0,107280.0,0.3605045]
[1750938130158,1.81151219,107290.0,107280.0,0.3139177]
[1750938132259,1.81151219,107290.0,107280.0,0.52496258]
[1750938135362,1.81151219,107290.0,107280.0,0.3139177]
[1750938136260,1.81151219,107290.0,107280.0,0.5839177]
[1750938136854,1.81151219,107290.0,107280.0,0.6039177]
[1750938137259,1.81151219,107290.0,107280.0,0.3039177]
[1750938138056,1.81151219,107290.0,107280.0,0.2339177]
[1750938138262,1.81151219,107290.0,107280.0,0.2939177]
[1750938139960,1.81151219,107290.0,107280.0,0.2339177]
[1750938140263,1.81151219,107290.0,107280.0,0.6139177]
[1750938144367,1.81151219,107290.0,107280.0,0.3039177]
[1750938148366,1.81151219,107290.0,107280.0,0.2573343]
[1750938150163,1.24095219,107290.0,107280.0,0.2573343]
[1750938150465,1.81131219,107290.0,107280.0,0.2573343]
[1750938150669,1.24095219,107290.0,107280.0,0.2573343]
[1750938150868,1.81127219,107290.0,107280.0,0.2573343]
[1750938151772,1.81127219,107290.0,107280.0,0.5173343]
[1750938152772,1.81127219,107290.0,107280.0,0.72837918]
[1750938153070,1.24095219,107290.0,107280.0,0.72837918]
[1750938153467,1.81127219,107290.0,107280.0,0.72837918]
[1750938157576,1.81127219,107290.0,107280.0,0.5173343]
[1750938157769,1.81127219,107290.0,107280.0,0.72837918]
[1750938158677,1.60022731,107290.0,107280.0,0.72837918]
[1750938158870,1.81127219,107290.0,107280.0,0.72837918]
[1750938160077,1.81127219,107290.0,107280.0,0.5173343]
[1750938161179,1.81127219,107290.0,107280.0,0.2473343]
[1750938161969,1.81127219,107290.0,107280.0,0.061]
[1750938163069,1.81127219,107290.0,107280.0,0.2473489]
[1750938165186,1.24095219,107290.0,107280.0,0.2473489]
[1750938165380,1.81111219,107290.0,107280.0,0.2473489]
[1750938165784,1.60006731,107290.0,107280.0,0.2473489]
[1750938166085,1.81111219,107290.0,107280.0,0.2473489]
[1750938167284,1.60006731,107290.0,107280.0,0.061]
[1750938167485,1.81111219,107290.0,107280.0,0.061]
[1750938168185,1.81111219,107290.0,107280.0,0.2473489]
[1750938169085,2.18111219,107290.0,107280.0,0.2473489]
[1750938169387,1.81111219,107290.0,107280.0,0.2473489]
[1750938170288,2.19111219,107290.0,107280.0,0.2473489]
[1750938170783,1.81111219,107290.0,107280.0,0.2473489]
[1750938171286,2.18111219,107290.0,107280.0,0.2473489]
[1750938171780,1.81111219,107290.0,107280.0,0.061]
[1750938172286,1.81111219,107290.0,107280.0,0.247349]
[1750938173483,1.81111219,107290.0,107280.0,0.061]
[1750938173683,2.12111219,107290.0,107280.0,0.061]
[1750938173884,1.81111219,107290.0,107280.0,0.061]
[1750938174187,1.81111219,107290.0,107280.0,0.247349]
[1750938174486,1.81111219,107290.0,107280.0,0.061]
[1750938174686,1.81111219,107290.0,107280.0,0.247349]
[1750938181791,1.08951219,107290.0,107280.0,0.247349]
[1750938182092,1.81111219,107290.0,107280.0,0.247349]
[1750938182892,1.81111219,107290.0,107280.0,0.061]
[1750938183390,1.81111219,107290.0,107280.0,0.05582001]
[1750938183391,2.36215707,107290.0,107280.0,0.05582001]
[1750938183582,2.40215707,107290.0,107280.0,0.05582001]
[1750938183784,0.1863663,107270.0,107260.0,0.4124818]
[1750938183983,1.32817118,107270.0,107260.0,0.7624818]
[1750938184189,1.42367118,107270.0,107260.0,0.715887]
[1750938184388,1.44953362,107270.0,107260.0,0.715887]
[1750938185692,1.44953362,107270.0,107260.0,0.92693188]
[1750938186090,1.44953362,107270.0,107260.0,1.02163188]
[1750938186291,1.44953362,107270.0,107260.0,1.030931]
[1750938186491,1.41793362,107270.0,107260.0,1.030931]
[1750938186687,1.39207118,107270.0,107260.0,1.034931]
[1750938187794,1.36097118,107270.0,107260.0,1.02563188]
[1750938189891,0.79101118,107270.0,107260.0,1.02563188]
[1750938190095,1.36097118,107270.0,107260.0,1.02563188]
[1750938190294,0.79101118,107270.0,107260.0,1.02563188]
[1750938190900,1.36097118,107270.0,107260.0,1.02563188]
[1750938191496,0.79101118,107270.0,107260.0,1.02563188]
[1750938191697,1.36093118,107270.0,107260.0,1.02563188]
[1750938192800,1.36093118,107270.0,107260.0,0.814587]
[1750938193000,1.36093118,107270.0,107260.0,1.02563188]
[1750938194701,1.1805863,107270.0,107260.0,1.02563188]
[1750938195001,1.39163118,107270.0,107260.0,1.02563188]
[1750938196196,1.39163118,107270.0,107260.0,0.96273188]
[1750938196504,1.42183118,107270.0,107260.0,0.96273188]
[1750938197197,1.42183118,107270.0,107260.0,0.751687]
[1750938197397,1.42183118,107270.0,107260.0,0.93093188]
[1750938200005,1.2107863,107270.0,107260.0,0.93093188]
[1750938200205,1.42183118,107270.0,107260.0,0.93093188]
[1750938202109,1.42183118,107270.0,107260.0,0.719887]
[1750938202404,1.42183118,107270.0,107260.0,0.93093188]
[1750938204606,1.42183118,107270.0,107260.0,0.719887]
[1750938204806,1.42183118,107270.0,107260.0,0.93093188]
[1750938206207,1.2107863,107270.0,107260.0,0.93093188]
[1750938206410,1.42183118,107270.0,107260.0,0.93093188]
[1750938207111,1.2107863,107270.0,107260.0,0.93093188]
[1750938207313,1.42183118,107270.0,107260.0,0.93093188]
[1750938208109,1.2107863,107270.0,107260.0,0.93093188]
[1750938208305,1.42183118,107270.0,107260.0,0.93093188]
[1750938210212,1.32801118,107270.0,107260.0,1.20647676]
[1750938210413,1.32801118,107270.0,107260.0,1.02733188]
[1750938210610,0.5471663,107270.0,107260.0,1.23837676]
[1750938210811,1.1169263,107270.0,107260.0,1.23837676]
[1750938212712,0.5471663,107270.0,107260.0,1.23837676]
[1750938214118,0.75821118,107270.0,107260.0,0.99543188]
[1750938214313,0.84971118,107270.0,107260.0,0.99543188]
[1750938214811,0.84971118,107270.0,107260.0,0.784387]
[1750938215015,0.84971118,107270.0,107260.0,0.99543188]
[1750938217317,0.84971118,107270.0,107260.0,0.96273188]
[1750938217719,0.84971118,107270.0,107260.0,0.751687]
[1750938217913,0.84971118,107270.0,107260.0,0.93093188]
[1750938218313,0.84971118,107270.0,107260.0,0.719887]
[1750938221616,0.87558625,107270.0,107260.0,0.719887]
[1750938222520,0.66454137,107270.0,107260.0,0.719887]
[1750938222719,0.87558625,107270.0,107260.0,0.719887]
[1750938223421,0.87558625,107270.0,107260.0,0.499887]
[1750938223722,0.87558625,107270.0,107260.0,0.3203837]
[1750938225916,0.87558625,107270.0,107260.0,0.3183837]
[1750938227220,0.87558625,107270.0,107260.0,0.5083837]
[1750938227931,0.87558625,107270.0,107260.0,0.5073837]
[1750938230841,0.87558625,107270.0,107260.0,0.5073838]
[1750938231139,0.87558625,107270.0,107260.0,0.71842868]
[1750938232040,0.87558625,107270.0,107260.0,0.5073838]
[1750938232532,0.66454137,107270.0,107260.0,0.5073838]
[1750938232728,0.87558625,107270.0,107260.0,0.5073838]
[1750938235639,0.87558625,107270.0,107260.0,0.321]
[1750938236942,1.08663113,107270.0,107260.0,0.321]
[1750938237439,0.87558625,107270.0,107260.0,0.321]
[1750938239444,0.87558625,107270.0,107260.0,0.111]
[1750938239742,0.88558625,107270.0,107260.0,0.111]
[1750938249746,1.24638625,107270.0,107260.0,0.111]
[1750938251051,1.45743113,107270.0,107260.0,0.111]
[1750938251349,1.24638625,107270.0,107260.0,0.111]
[1750938253855,1.45743113,107270.0,107260.0,0.111]
[1750938257849,1.24638625,107270.0,107260.0,0.111]
[1750938264461,1.45743113,107270.0,107260.0,0.111]
[1750938265663,2.02691113,107270.0,107260.0,0.111]
[1750938271766,1.03534137,107270.0,107260.0,0.111]
[1750938271963,1.03534137,107270.0,107260.0,0.311]
[1750938272167,1.24638625,107270.0,107260.0,0.311]
[1750938272665,1.24638625,107270.0,107260.0,0.121]
[1750938277066,1.23638625,107270.0,107260.0,0.121]
[1750938277869,1.44743113,107270.0,107260.0,0.121]
[1750938281064,1.51743113,107270.0,107260.0,0.121]
[1750938285075,1.80743113,107270.0,107260.0,0.121]
[1750938288977,1.80743113,107270.0,107260.0,0.001]
[1750938289184,0.1864185,107240.0,107230.0,0.00677973]
[1750938289385,1.89954826,107240.0,107230.0,0.57321563]
[1750938289686,1.92994826,107240.0,107230.0,0.38677973]
[1750938289885,1.96124826,107240.0,107230.0,0.38677973]
[1750938290087,1.99254826,107240.0,107230.0,0.38677973]
[1750938290781,1.99254826,107240.0,107230.0,0.39277973]
[1750938291482,2.10069118,107240.0,107230.0,0.39277973]
[1750938292786,2.10069118,107240.0,107230.0,0.19577973]
[1750938293981,2.09123803,107240.0,107230.0,0.19577973]
[1750938294787,1.67836034,107240.0,107230.0,0.19577973]
[1750938295085,2.1004501,107240.0,107230.0,0.19577973]
[1750938295287,1.67836034,107240.0,107230.0,0.19577973]
[1750938295488,2.1004501,107240.0,107230.0,0.19577973]
[1750938296888,1.67836034,107240.0,107230.0,0.19577973]
[1750938297091,2.1004501,107240.0,107230.0,0.19577973]
[1750938297389,2.07479885,107240.0,107230.0,0.19577973]
[1750938297893,2.41037946,107240.0,107230.0,0.19577973]
[1750938298097,2.10037946,107240.0,107230.0,0.19577973]
[1750938302794,2.48037946,107240.0,107230.0,0.19577973]
[1750938303786,1.1088497,107240.0,107230.0,0.19577973]
[1750938303994,2.10229946,107240.0,107230.0,0.19577973]
[1750938306095,2.44229946,107240.0,107230.0,0.19577973]
[1750938306689,2.10229946,107240.0,107230.0,0.19577973]
[1750938306883,2.44229946,107240.0,107230.0,0.19577973]
[1750938308889,0.1864705,107210.0,107200.0,0.00593279]
[1750938309084,2.38468026,107210.0,107200.0,0.20593279]
[1750938309284,2.47888026,107210.0,107200.0,0.00593279]
[1750938310292,2.57215949,107210.0,107200.0,0.00593279]
[1750938310493,2.57215949,107210.0,107200.0,0.00993279]
[1750938310992,1.86763949,107210.0,107200.0,0.00993279]
[1750938311198,1.77436026,107210.0,107200.0,0.00993279]
[1750938311498,2.47976026,107210.0,107200.0,0.01093279]
[1750938311797,2.47976026,107210.0,107200.0,0.00793279]
[1750938311992,2.48076026,107210.0,107200.0,0.00693279]
[1750938312186,2.0839936,107210.0,107200.0,0.00693279]
[1750938312394,2.36611715,107210.0,107200.0,0.00693279]
[1750938312892,1.66071715,107210.0,107200.0,0.00693279]
[1750938313094,1.5076336,107210.0,107200.0,0.65905634]
[1750938313299,1.8577536,107210.0,107200.0,0.47554424]
[1750938313600,1.8577536,107210.0,107200.0,0.39422069]
[1750938313799,2.13987715,107210.0,107200.0,0.39422069]
[1750938314100,1.8577936,107210.0,107200.0,0.39422069]
[1750938315394,1.2843936,107210.0,107200.0,0.39422069]
[1750938315595,1.8584736,107210.0,107200.0,0.39422069]
[1750938316299,1.8584736,107210.0,107200.0,0.39322069]
[1750938317101,2.27487715,107210.0,107200.0,0.00593279]
[1750938317306,2.33777715,107210.0,107200.0,0.00593279]
[1750938317499,2.0556536,107210.0,107200.0,0.00593279]
[1750938317800,2.33777715,107210.0,107200.0,0.00593279]
[1750938320097,1.9223336,107210.0,107200.0,0.19242069]
[1750938320298,0.0263231,107210.0,107200.0,0.87564424]
[1750938320500,0.0263231,107210.0,107200.0,1.62072424]
[1750938320801,1.33577062,107240.0,107230.0,0.1864357]
[1750938321004,0.78537392,107240.0,107230.0,0.1864357]
[1750938321194,1.36141392,107240.0,107230.0,0.2815357]
[1750938321592,0.78537392,107240.0,107230.0,0.2815357]
[1750938321804,1.36157392,107240.0,107230.0,0.2815357]
[1750938321997,1.31496502,107240.0,107230.0,0.94365925]
[1750938322195,0.74376502,107240.0,107230.0,0.57365925]
[1750938322392,1.31996502,107240.0,107230.0,0.6215357]
[1750938322597,0.74676502,107240.0,107230.0,0.6215357]
[1750938322902,1.02888857,107240.0,107230.0,0.2391357]
[1750938323107,1.06068857,107240.0,107230.0,0.2391357]
[1750938323298,1.06068857,107240.0,107230.0,0.0527]
[1750938323600,1.12348857,107240.0,107230.0,0.2191357]
[1750938324404,1.02588857,107240.0,107230.0,0.2191357]
[1750938324604,1.31492502,107240.0,107230.0,0.6303357]
[1750938325000,1.31492502,107240.0,107230.0,0.2703357]
[1750938325506,1.59704857,107240.0,107230.0,0.2064357]
[1750938325707,1.69224857,107240.0,107230.0,0.2064357]
[1750938327410,1.69224857,107240.0,107230.0,0.2064359]
[1750938327808,1.69524857,107240.0,107230.0,0.2064359]
[1750938328111,1.69524857,107240.0,107230.0,0.02]
[1750938328410,0.1864359,107230.0,107220.0,0.74235165]
[1750938328611,0.5472359,107230.0,107220.0,1.09235165]
[1750938329110,0.96919445,107230.0,107220.0,0.3164533]
[1750938329299,0.7476709,107230.0,107220.0,0.5264533]
[1750938330005,0.7476709,107230.0,107220.0,0.2264533]
[1750938330206,1.02979445,107230.0,107220.0,0.04]
[1750938330404,1.02979445,107230.0,107210.0,0.13424]
[1750938330405,0.1864533,107220.0,107210.0,0.13424]
[1750938330607,0.92417685,107220.0,107210.0,0.3307107]
[1750938331007,0.6420533,107220.0,107210.0,0.3307107]
[1750938331208,0.6420533,107220.0,107210.0,0.5064707]
[1750938331411,0.6420533,107220.0,107210.0,0.1964707]
[1750938331710,0.6420533,107220.0,107210.0,0.5564707]
[1750938331911,0.6430533,107220.0,107210.0,0.5564707]
[1750938332806,0.1874533,107220.0,107210.0,0.83859425]
[1750938333011,0.1874533,107220.0,107210.0,1.26109425]
[1750938333217,0.001,107220.0,107210.0,1.26109425]
[1750938333912,0.001,107220.0,107210.0,1.83821425]
[1750938334308,0.3262867,107230.0,107220.0,0.1864533]
[1750938334508,0.3262867,107230.0,107220.0,1.02851685]
[1750938335412,0.3262867,107230.0,107220.0,0.7463933]
[1750938335601,0.3262867,107230.0,107220.0,1.03051685]
[1750938337011,0.279674,107230.0,107220.0,1.03051685]
[1750938338217,0.1864359,107230.0,107220.0,1.17034825]
[1750938338410,0.6870547,107240.0,107230.0,0.1864359]
[1750938338610,0.71265612,107240.0,107230.0,0.5799359]
[1750938339708,0.71365612,107240.0,107230.0,0.5799359]
[1750938340521,0.62044052,107240.0,107230.0,0.86205945]
[1750938340723,0.02660142,107240.0,107230.0,0.86205945]
[1750938341019,0.001,107240.0,107230.0,0.86205945]
[1750938341216,0.001,107240.0,107230.0,1.80061945]
[1750938343320,0.001,107240.0,107230.0,1.5184959]
[1750938343620,0.001,107240.0,107230.0,1.80061945]
[1750938346218,0.001,107240.0,107230.0,1.5184959]
[1750938346422,0.001,107240.0,107230.0,1.80061945]
[1750938346923,0.001,107240.0,107230.0,1.80990415]
[1750938351518,0.001,107270.0,107260.0,0.1863837]
[1750938351715,0.02568344,107270.0,107260.0,2.1767908]
[1750938351919,0.07432098,107310.0,107300.0,0.1863143]
[1750938352216,0.25456294,107330.0,107310.0,0.001]
[1750938352434,0.22438881,107330.0,107320.0,0.46840305]
[1750938352725,0.92351274,107330.0,107320.0,0.36]
[1750938352933,0.1862795,107320.0,107310.0,0.279428]
[1750938353128,0.89230305,107320.0,107310.0,0.659428]
[1750938353429,0.6101795,107320.0,107310.0,0.659428]
[1750938353932,0.6101795,107320.0,107310.0,0.94155155]
[1750938354625,0.6141795,107320.0,107310.0,0.94155155]
[1750938356127,0.004,107320.0,107310.0,0.94155155]
[1750938356329,0.009,107320.0,107310.0,1.00685155]
[1750938357627,0.1952796,107320.0,107310.0,1.00685155]
[1750938357835,0.009,107320.0,107310.0,1.00685155]
[1750938358534,0.1952796,107320.0,107310.0,1.00685155]
[1750938360118,0.009,107320.0,107310.0,1.00685155]
[1750938360324,0.1952796,107320.0,107310.0,1.00685155]
[1750938360524,0.1952796,107320.0,107310.0,0.724728]
[1750938360734,0.6199796,107320.0,107310.0,1.61429745]
[1750938360931,0.90210315,107320.0,107310.0,0.3695739]
[1750938361125,0.90210315,107320.0,107310.0,0.7395739]
[1750938361727,0.6199796,107320.0,107310.0,0.7395739]
[1750938363033,0.6199796,107320.0,107310.0,1.02169745]
[1750938365831,0.4337,107320.0,107310.0,1.02169745]
[1750938366023,0.0729,107320.0,107310.0,1.02169745]
[1750938366433,0.0729,107320.0,107310.0,1.08499745]
[1750938368239,0.0729,107320.0,107310.0,0.8028739]
[1750938368534,0.2591795,107320.0,107310.0,1.08499745]
[1750938375031,0.2591795,107320.0,107310.0,1.05259745]
[1750938375232,0.2591795,107320.0,107310.0,1.02169745]
[1750938375634,0.6199795,107320.0,107310.0,1.3245339]
[1750938375829,0.6199795,107320.0,107310.0,1.3244139]
[1750938376034,0.6199795,107320.0,107310.0,1.02429745]
[1750938378638,0.6199795,107320.0,107310.0,0.7421739]
[1750938378844,0.6199795,107320.0,107310.0,1.02429745]
[1750938379244,0.6199795,107320.0,107310.0,0.7421739]
[1750938381444,0.64490505,107320.0,107310.0,0.7421739]
[1750938382044,0.64490505,107320.0,107310.0,1.02429745]
[1750938383546,0.64490505,107320.0,107310.0,0.7421739]
[1750938387244,0.64490505,107320.0,107310.0,1.02429745]
[1750938393958,0.71883451,107320.0,107310.0,0.7421739]
[1750938394453,0.71883451,107320.0,107310.0,1.02429745]
[1750938396553,1.00095806,107320.0,107310.0,0.50932]
[1750938396753,1.58191806,107320.0,107310.0,0.49932]
[1750938396957,1.58191806,107320.0,107310.0,0.24932]
[1750938397556,1.63191806,107320.0,107310.0,0.24932]
[1750938398054,1.63191806,107320.0,107310.0,0.47932]
[1750938398548,1.34979451,107320.0,107310.0,0.47932]
[1750938399658,1.34979451,107320.0,107310.0,0.48932]
[1750938399851,1.34979451,107320.0,107310.0,0.21932]
[1750938400163,0.76883451,107320.0,107310.0,0.49932]
[1750938400848,0.76883451,107320.0,107310.0,0.21932]
[1750938401050,0.76883451,107320.0,107310.0,0.51932]
[1750938405061,0.76883451,107320.0,107310.0,0.13932]
[1750938405256,0.76883451,107320.0,107310.0,0.3256169]
[1750938405561,0.71883451,107320.0,107310.0,0.6756169]
[1750938408569,0.71883451,107320.0,107310.0,0.4256169]
[1750938409268,0.71883451,107320.0,107310.0,0.2862969]
[1750938409465,0.71883451,107320.0,107310.0,0.1]
[1750938411064,1.00095806,107320.0,107310.0,0.1]
[1750938411869,0.1862969,107310.0,107300.0,0.76186145]
[1750938412069,0.5470969,107310.0,107300.0,1.18806674]
[1750938412977,0.5510969,107310.0,107300.0,1.18806674]
[1750938414178,0.5540969,107310.0,107300.0,1.18806674]
[1750938415076,0.57907571,107310.0,107300.0,1.18806674]
[1750938415575,0.57907571,107310.0,107300.0,1.14148854]
[1750938416077,0.64317571,107310.0,107300.0,1.14148854]
[1750938416887,0.67367571,107310.0,107300.0,1.14148854]
[1750938417577,0.68287518,107310.0,107300.0,1.14148854]
[1750938417767,0.67367571,107310.0,107300.0,1.14148854]
[1750938417970,0.67367571,107310.0,107300.0,1.07928854]
[1750938419174,1.25295571,107310.0,107300.0,0.7043831]
[1750938419877,1.2279769,107310.0,107300.0,0.7043831]
[1750938420078,1.25295379,107310.0,107300.0,0.7043831]
[1750938421171,1.26223325,107310.0,107300.0,0.7043831]
[1750938421572,1.25295379,107310.0,107300.0,0.7043831]
[1750938424772,1.2279769,107310.0,107300.0,0.7043831]
[1750938425979,1.23749542,107310.0,107300.0,0.7043831]
[1750938426873,1.2279769,107310.0,107300.0,0.7043831]
[1750938428082,1.25289271,107310.0,107300.0,0.7043831]
[1750938429782,1.61369271,107310.0,107300.0,0.7043831]
[1750938432382,1.61369271,107310.0,107300.0,0.7043942]
[1750938434777,0.89209271,107310.0,107300.0,0.7043942]